{"text_format":"3","workbook":"xlsx","n_sheets":1,"sheets":["Sheet1"],"not_rendered":{"images":1,"defined_names":1},"read":"whole","date_system":"1900"}

{"sheet":"Sheet1","index":0,"n_rows":280,"n_cols":7,"rows_kept":280,"merged":[[0,2,0,6],[1,3,1,4],[1,5,1,6],[2,3,2,4],[2,5,2,6],[3,3,3,4],[3,5,3,6],[4,3,4,4],[4,5,4,6],[5,3,5,4],[5,5,5,6],[6,2,6,6],[7,3,7,4],[7,5,7,6],[8,1,8,2],[8,3,8,6],[9,3,9,4],[9,5,9,6],[10,3,10,4],[10,5,10,6],[11,3,11,4],[11,5,11,6],[12,3,12,4],[12,5,12,6],[13,3,13,4],[13,5,13,6],[14,3,14,4],[14,5,14,6],[15,1,15,2],[15,3,15,4],[15,5,15,6],[16,1,16,2],[16,3,16,4],[16,5,16,6],[35,1,35,3],[146,1,146,2],[266,1,266,6],[277,1,279,4]]}
[null,"PO Nr"]
[null,"Supplier",null,"ESKOM Contact Person"]
[null,"Contact Person",null,"Tel / Cell No"]
[null,"Address",null,"Address"]
[null,"Tel/Cell No",null,"Alternative Tel / Cell No"]
[null,"E-Mail",null,"E-Mail"]
[null,"Scope of Works"]
[null,"Start Date",null,"End date"]
[null,"Supplier Details ",null,"ESKOM Details (Approval)"]
[null,"Accepted By",null,"Approved By (S/Sup)"]
[null,"Title",null,"Unique Nr and SAP user Id"]
[null,"Tel / Cell No",null,"Tel / Cell No"]
[null,"E-Mail",null,"E-Mail"]
[null,"Date",null,"Date"]
[null,"Signature",null,"Signature"]
[null,"Name and Surname of Person that Verified Completion of Works",null,"Unique Number",null,"Signature"]
[]
[]
["SAP NUMBER","ITEM","DESCRIPTION","UNIT","QTY","NEGOTIATED RATES","TOTAL"]
[null,"A.1","Site visits per task order issued ","1 Site Visit per Task Order",null,null,{"$f":"SUM(F20*E20)","v":{"v":0,"d":"R0.00"}}]
[null,"A.2","HV/MV authorised operator switching per day. (Operating sheets as proof)","Per day",null,null,{"$f":"SUM(F21*E21)","v":{"v":0,"d":"R0.00"}}]
[null,"A.3","Buy-outs (Material ) only from accredited suppliers ","R",null,null,{"v":0,"d":"R0.00"}]
[null,"A.4","LDV per km (Include Tracking Records)","km",null,null,{"v":0,"d":"R0.00"}]
[null,"A.5","Crane Truck per km (Include Tracking Records)","km",null,null,{"v":0,"d":"R0.00"}]
[null,"A.6","Compressor ","Per day",null,null,{"v":0,"d":"R0.00"}]
[null,"A.7","TLB (Digger loader)","Per day",null,null,{"v":0,"d":"R0.00"}]
[null,"A.8","Helicopter ","Per day",null,null,{"v":0,"d":"R0.00"}]
[null,"A.9","Rock drilling (1m -1.5m)","per/ metre",null,null,{"$f":"SUM(F28*E28)","v":{"v":0,"d":"R0.00"}}]
[null,null,"Rock drilling (1.6m -2m)","per/ metre",null,null,{"v":0,"d":"R0.00"}]
[null,null,"Rock drilling (2,1m - 2,5m)","per/ metre",null,null,{"v":0,"d":"R0.00"}]
[null,null,"Rock drilling (2,5m - 3m)","per/ metre",null,null,{"v":0,"d":"R0.00"}]
[null,"A.10","Health and Safety ","R",null,null,{"$f":"SUM(F32*E32)","v":{"v":0,"d":"R0.00"}}]
[null,"A.11","Teams","per day",null,null,{"$f":"SUM(E33)","v":{"v":0,"d":"R0.00"}}]
[null,"A.12","Lost time per approved and cancelled outage LDV team","per day",null,null,{"v":0,"d":"R0.00"}]
[null,"A.13","Lost time per approved and cancelled outage truck","per day",null,null,{"$f":"SUM(E35)","v":{"v":0,"d":"R0.00"}}]
["##############","SUBSTATION SECTION"]
["Crush stone","B.1","Crush stoning activity: Weeding ","per/sq meter"]
[null,null,"Crush stoning activity: ground leveling including any type of soil","per/sq meter"]
[null,null,"Crush stoning activity: Treat the soil for weeding - apply herbicide","per/sq meter"]
[null,null,"Crush stoning activity: Apply crush stone as per the standard","per/sq meter"]
[null,null,"Crush stoning activity: Level crush stone after crushstone has been applied. ","per/sq meter"]
[null,null,"Crush stoning activity: Removing of existing crush stone. ","per/sq meter"]
[null,null,"Crush stoning activity: Applying of soft soil or Isabhunga and compacting","per/sq meter"]
[null,null,"Crush stoning (including any other type of soil)","per/sq meter"]
[null,null,"Aircondition replacement/installation labour only (including any alterations)","per/hour"]
[null,null,"Major Services - 1  (one) from Monday to Friday between 8 am and 4 pm) Domestic units","Per service"]
[null,null,"Minor Services - 1 (one) for work to be done after normal working hours and Saturdays) Domestic units","Per service"]
[null,null,"Package Plants","Per service"]
[null,null,"Minor Services - 1 (one) for work to be done on Sundays and public holidays) Domestic units","Per service"]
[null,null,"Major Services - 1 ( one ) for work to be done Sundays and public holidays) Domestic units","Per service"]
[null,null,"Back to Back Materials: Galvanised 650mm brackets, Grey trunking & Materials. Copper pipes, sleeving, drain pipes) Max 5m pipe runs (For Installation only)"]
[null,null,"9000 Btu","Ea"]
[null,null,"12000 Btu","Ea"]
[null,null,"18000 Btu","Ea"]
[null,null,"24000 Btu","Ea"]
[null,null,"30000 Btu","Ea"]
[null,null,"36000 Btu","Ea"]
[null,null,"36000 Btu - 56000 Btu","Ea"]
[null,null,"Additional material (For installation only)"]
[null,null,"Outside trunking Grey ( 75mm x 75mm per length )","p/meter"]
[null,null,"Outside trunking White (100mm x 40mm per length )","p/meter"]
[null,null,"3/8 ''copper pipe c/w insulation   ( p/m )","p/meter"]
[null,null,"1/2 ''copper pipe c/w insulation ( p/m )","p/meter"]
[null,null,"Drain Pipe (p/m)","p/meter"]
[null,null,"Labour Technician & Assistant - per hour","per hour"]
[null,null,"Travelling Cost","Per km"]
[null,null,"Accommodation","Per Night"]
[null,null,"Aircondition  Supply (Buyout %)","Each"]
[null,null,"Electrical work labour only (single /3ph installation and master electrician for DC installation) ","per/hour"]
[null,null,"Flood light structure repair or replace ","Each"]
[null,null,"Plumbing work: should be an approved plumber with PiBR ","per/hour"]
[null,null,"Plumbing work: chassing of the wall and plastering ","per/sq meter"]
[null,null,"Earth mat installation or earth straps brazing","per/unit"]
[null,null,"Earth strap installation: Digging per cubic meter and back filling","cubic/meters"]
[null,null,"Earth strap installation: Remove stone and backfilling ","per/sq meter"]
[null,null,"Earth strap installation: Paint the strapping ","per/unit"]
[null,null,"Substation breaker/transformer plinths replacement ","per/sq meter"]
[null,null,"Substation breaker/transformer plinths replacement : remove existing trfm/breaker","per/unit"]
[null,null,"Substation breaker/transformer plinths replacement : excavation, backfilling and compaction","per/cubic/meter"]
[null,null,"Substation breaker/transformer plinths replacement : removal of plinth ","per/unit"]
[null,null,"Substation breaker/transformer plinths replacement : cast on site and boxing","per/cubic/meter"]
[null,null,"Substation breaker/transformer replacement : Erect structure","per/unit"]
[null,null,"Substation breaker/transformer plinths replacement : Drilling & stitching (plinth modification)","per/unit"]
[null,null,"Substation paving maintenance (laying of the paving).","per/sq meter"]
[null,null,"Substation paving removal ","per/sq meter"]
[null,null,"Substation  kerbing repairs ","per/ meter"]
[null,null,"Substation wall bund (trfm) and relay room wall : Break and Building","per/sq meter"]
[null,null,"Weeding, grass cutting and herbicide application","per/sq meter"]
[null,null,"Concrete trench covers (supply and install)","Each"]
[null,null,"Concrete trench covers: Remove and disposal of old units","per/unit"]
[null,null,"Concrete trench covers: handling of asbestos units and disposal ","per/unit"]
[null,null,"Transformer earthing: Earth straps brazing","per/meter"]
[null,null,"Relay room activities: Painting of walls, ceiling and floors","per/sq meter"]
[null,null,"Relay room activities: Prepare the surface by sanding and apply polyfiller","per/sq meter"]
[null,null,"Installation of ceilings,glass windows and roofing. ","per/sq meter"]
[null,null,"Installation of cornice, guttering, fascia boards, ceiling straps ","per/meter"]
[null,null,"Installation of water Jojo Tanks","per/unit"]
[null,null,"Maintanance/ repair of the roof","per/sq meter"]
[null,null,"Replacing of doors","Each"]
[null,null,"Installation of galvanised steel doors","Each "]
[null,null,"Honey sucker","per litre"]
[null,null,"Septic tanks maintenance and repairs","per/sq meter"]
[null,null,"Mobile toilet rental and maintain","Each/per day"]
[null,null,"Repairing of doors, and door components","each"]
[null,null,"Substation fencing - install and supply galvininsed palisade including security gates","per/meter"]
[null,null,"Substation fencing : Excavation and backfilling","per/hole"]
[null,null,"Substation fencing : Repair/maintain of Palisade fencing ","per/meter"]
[null,null,"Substation yard signs replacement ","each"]
[null,null,"Substation fencing removal","per/meter"]
[null,null,"MV authorised operator switching per day. (Operating sheets as proof)","per/day"]
[null,null,"TLB (Digger loader)","per/day"]
[null,null,"Access roads work: Filling/topping G5 soil. ","per/meter"]
[null,null,"Access roads work: excavation, level and compact ","cubic/metre"]
[null,null,"Access roads work: direct water flow","sq meter"]
[null,null,"Access roads work: Install concrete pipes","per/meter"]
[null,null,"Access roads work: Gabion baskets installation to prevent soil erossion "]
[null,null,"Access roads work: Gabion baskets and fill with approved stones","per/unit"]
[null,null,"Line Bore – (Drill under through Roads and Pathways)","per/meter"]
[null,null,"Install or Remove  Voltage Regulator "]
[null,null,"Demolishing HV (66kV and132kV) Line - Including Poles)","per/structure"]
[null,null,"Planting of HV poles (66kV and 132kV) Five pole structure","per/structure"]
[null,null,"Planting of HV poles (66kV and 132kV) Latice structure","per/structure"]
[null,null,"Planting of HV poles (66kV and 132kV) Mono pole structure","per/structure"]
[null,null,"X-arm - HV poles (66kV and 132kV) ","per/structure"]
[]
[null,null,"Pole numbering HV ","per/structure"]
[]
[null,null,"Planting or Removing Pole (NO crane vehicle access – Plant/Remove by manual labour)","per/structure type"]
[null,null,"Stays and hardware Installation","per/hardware"]
[]
[null,null,"Replace insulators 66kV to 132kV Lines (Up to all Insulators on 1 Phase- Costing per phase and excludes when stringing is done)","per/hardware"]
[]
[null,null,"MV & HV Line Inspection (All Line Inspections shall be done as per 34-1441 - ROUTINE INSPECTION AND MAINTENANCE OF SUBTRANSMISSION AND DISTRIBUTION LINES. (All lines inspection reports shall be accompanied by the inspectors Training certificate for Line Inspections.)","line length "]
[]
[]
[]
[null,null,"Fusing philosophy (Fuse replacing or solid replacing)","per/hardware"]
[null,null,"Guard wire - Remove/replace/ install ","per/hardware"]
[null,null,"Remove and replace other loose attachments (SA, Dead-ends, wreplock etc) MV/HV","per/hardware"]
[]
[null,null,"Removal of illegal connections (per airdac) ","per/structure"]
[null,null,"Flood light in Substation ","per/unit"]
[null,null,"Remove and replace other loose attachments (SA, Dead-ends, wreplock etc)","per/hardware"]
[null,null,"Streetlight repairing (Photocell / MCB / Contactor / Bulb)","per/structure"]
[null,null,"Line Inspection LV (All Line Inspections shall be done as per 240-69499676 MAINTENANCE STANDARD FOR LOW VOLTAGE NETWORKS. All lines inspection reports shall be accompanied by the inspectors Training certificate for Line Inspections.)","line length "]
[null,null,"Prepaid meter programming ","per/unit"]
[null,"Maintenance "]
[null,"C0","Gabion rocks bags/baskets per ton (supply)","cubic/metre"]
[null,"C1","Installation of Gabion rocks bags/baskets per ton ","ton"]
[null,"C2","Installation of vibration dampers ","per/unit"]
[null,"C3","Installation of anti-patching device HV","per/unit"]
[null,"C4","Installation of anti-patching device MV","per/unit"]
[null,"C5","String fox, mink, acasia, pine, ACC (Includes all activities)","3 phase linear km ",null,null,{"v":0,"d":"R0.00"}]
[null,"C6","String hare, greased oak (Includes all activities)","3 phase linear km ",null,null,{"v":0,"d":"R0.00"}]
[null,"C7","String CHIKADEE conductor (Includes all activities)","3 phase linear km ",null,null,{"v":0,"d":"R0.00"}]
[null,"C8","String centipede other 20mm -25mm","3 phase linear km "]
[null,"C9","String hornet other 26mm -30mm","3 phase linear km "]
[null,"C10","Removal of conductors on 66kV/132kV (Damaged or to replace with new and includes guard/Earth Wire where applicable)","linear m",null,null,{"v":0,"d":"R0.00"}]
[null,"C11","Laying of 66kV/132kV Cables (Includes laying the cables, the danger tape and closing the trench - Depth approx.1m)","linear m",null,null,{"v":0,"d":"R0.00"}]
[null,"C12","Digging of trenches for 66kV/132kV Cables  (Depth Approx. 1m) ","linear m",null,null,{"v":0,"d":"R0.00"}]
[null,"C13","Foundation for 66kV/132kV Monopole (Includes digging and concrete All Activities)","each",null,null,{"v":0,"d":"R0.00"}]
[null,"C14","Foundation for 66kV/132kV Lattice Tower (Includes digging and concrete All Activities)","each",null,null,{"v":0,"d":"R0.00"}]
[null,"C15","11kV /22kV cable termination ","each"]
[null,"C16","66kV Single Core Termination - PAX Cable – Indoor","each",null,null,{"v":0,"d":"R0.00"}]
[null,"C17","66kV Single Core Termination - PILC – Indoor","each",null,null,{"v":0,"d":"R0.00"}]
[null,"C18","66kV Single Core Termination - Gas Insulated Cable – Indoor","each",null,null,{"v":0,"d":"R0.00"}]
[null,"C19","66kV Single Core Termination - Oil Insulated Cable – Indoor","each",null,null,{"v":0,"d":"R0.00"}]
[null,"C20","66kV Single Core Termination - PAX Cable – Outdoor","each",null,null,{"v":0,"d":"R0.00"}]
[null,"C21","66kV Single Core Termination - PILC – Outdoor","each",null,null,{"v":0,"d":"R0.00"}]
[null,"C22","66kV Single Core Termination - Gas Insulated Cable – Outdoor","each",null,null,{"v":0,"d":"R0.00"}]
[null,"C23","66kV Single Core Termination - Oil Insulated Cable – Outdoor","each",null,null,{"v":0,"d":"R0.00"}]
[null,"C24","66kV Single Core Joint - Pax Cable","each",null,null,{"v":0,"d":"R0.00"}]
[null,"C25","66kV Single Core Joint – PILC","each",null,null,{"v":0,"d":"R0.00"}]
[null,"C26","66kV Single Core Joint - Gas Insulated Cable","each",null,null,{"v":0,"d":"R0.00"}]
[null,"C27","66kV Single Core Joint - Oil insulated Cable","each",null,null,{"v":0,"d":"R0.00"}]
[null,"C28","66kV 3 Phase Joint - Pax Cable","each",null,null,{"v":0,"d":"R0.00"}]
[null,"C29","66kV 3 Phase Joint – PILC","each",null,null,{"v":0,"d":"R0.00"}]
[null,"C30","66kV 3 Phase Joint  - Gas Insulated Cable","each",null,null,{"v":0,"d":"R0.00"}]
[null,"C31","66kV 3 Phase Joint  - Oil insulated Cable","each",null,null,{"v":0,"d":"R0.00"}]
[null,"C32","132kV Single Core Termination - PAX Cable – Indoor","each",null,null,{"v":0,"d":"R0.00"}]
[null,"C33","132kV Single Core Termination - PILC – Indoor","each",null,null,{"v":0,"d":"R0.00"}]
[null,"C34","132kV Single Core Termination - Gas Insulated Cable - Indoor","each",null,null,{"v":0,"d":"R0.00"}]
[null,"C35","132kV Single Core Termination - Oil Insulated Cable – Indoor","each",null,null,{"v":0,"d":"R0.00"}]
[null,"C36","132kV Single Core Termination - PAX Cable – Outdoor","each",null,null,{"v":0,"d":"R0.00"}]
[null,"C37","132kV Single Core Termination - PILC – Outdoor","each",null,null,{"v":0,"d":"R0.00"}]
[null,"C38","132kV Single Core Termination - Gas Insulated Cable - Outdoor","each",null,null,{"v":0,"d":"R0.00"}]
[null,"C39","132kV Single Core Termination - Oil Insulated Cable - Outdoor","each",null,null,{"v":0,"d":"R0.00"}]
[null,"C40","132kV Single Core Joint - Pax Cable","each",null,null,{"v":0,"d":"R0.00"}]
[null,"C41","132kV Single Core Joint – PILC","each",null,null,{"v":0,"d":"R0.00"}]
[null,"C42","132kV Single Core Joint - Gas Insulated Cable","each",null,null,{"v":0,"d":"R0.00"}]
[null,"C43","132kV Single Core Joint - Oil insulated Cable","each",null,null,{"v":0,"d":"R0.00"}]
[null,"C44","132kV 3 Phase Joint - Pax Cable","each",null,null,{"v":0,"d":"R0.00"}]
[null,"C45","132kV 3 Phase Joint – PILC","each",null,null,{"v":0,"d":"R0.00"}]
[null,"C46","132kV 3 Phase Joint  - Gas Insulated Cable","each",null,null,{"v":0,"d":"R0.00"}]
[null,"C47","132kV 3 Phase Joint  - Oil insulated Cable","each",null,null,{"v":0,"d":"R0.00"}]
[null,"C48","Planting or Removing 5 Pole structure","each",null,null,{"v":0,"d":"R0.00"}]
[null,"C49","Planting or Removing 5 Pole structure"]
[null,"C50","Demolishing/Removing 66kV/132kV Lattice Structure","each",null,null,{"v":0,"d":"R0.00"}]
[null,"C51","Demolishing/Removing 66kV/132kV Monopole (steel structure)","each",null,null,{"v":0,"d":"R0.00"}]
[null,"C52","Demolishing/Removing 66kV/132kV Monopole (woodpole structure)"]
[null,"C53","Erect /Install 66kV/132kV Lattice Structure","each",null,null,{"v":0,"d":"R0.00"}]
[null,"C54","Erect /Install 66kV/132kV Monopole","each",null,null,{"v":0,"d":"R0.00"}]
[null,"C55","Demolishing 66kV/132kV Feeder - Woodpole (Including Guard/Earth Wire)","linear m",null,null,{"v":0,"d":"R0.00"}]
[null,"C56","Demolishing 66kV/132kV Feeder - Monopole (Including Guard/Earth Wire)","linear m",null,null,{"v":0,"d":"R0.00"}]
[null,"C57","Demolishing 66kV/132kV Feeder - Lattice Structure (Including Guard/Earth Wire)","linear m",null,null,{"v":0,"d":"R0.00"}]
[null,"C58","Install Stay - include all hardware","each",null,null,{"v":0,"d":"R0.00"}]
[null,"C59","Install wrapped Durapole fire protection covering (to D-DT-0051)","each",null,null,{"v":0,"d":"R0.00"}]
[null,"C60","Tensioning of Stays (Includes the loosening and re-tensioning)","each",null,null,{"v":0,"d":"R0.00"}]
[null,"C61","Replace insulators 66kV/132kv (Up to all Insulators on 1 Phase- Costing per phase)","each",null,null,{"v":0,"d":"R0.00"}]
[null,"C62","Inspection of link box","each",null,null,{"$f":"SUM(F210*E210)","v":{"v":0,"d":"R0.00"}}]
[null,"C63","Replace 6Way earth link box","each",null,null,{"v":0,"d":"R0.00"}]
[null,"C64","Replace 6Way cross-bonded link box with 6 SVLs","each",null,null,{"v":0,"d":"R0.00"}]
[null,"C65","Replace Earth link","each",null,null,{"v":0,"d":"R0.00"}]
[null,"C66","Replace Cross bonding link","each",null,null,{"v":0,"d":"R0.00"}]
[null,"C67","Replace SVL","each",null,null,{"v":0,"d":"R0.00"}]
[null,"C68","Replace bonding lead","each",null,null,{"v":0,"d":"R0.00"}]
[null,"C69","Waterproofing/sealing link box","each",null,null,{"v":0,"d":"R0.00"}]
[null,"C70","Perform sheathing integrity test","each",null,null,{"v":0,"d":"R0.00"}]
[null,"C71","Sheath-bonding verification","each",null,null,{"v":0,"d":"R0.00"}]
[null,"C72","Testing of contact resistances for earth and bonding connections","each",null,null,{"v":0,"d":"R0.00"}]
[null,"C73","Anti-climbing device Replace/Remove","each"]
[null,"C74","Replacing/installation of steel structure members","each"]
[null,"C75","Install OPGW (optical groundwire)","per/m"]
[null,"C76","Pole numbering HV ","each"]
[null,"C77","Bonding lead circulating current and sheath standing voltage measurements","each"]
[null,"C78","X-arm - HV poles (66kV and 132kV) ","each"]
[null,"C79","MV & HV Line Inspection (All Line Inspections shall be done as per 34-1441 - ROUTINE INSPECTION AND MAINTENANCE OF SUBTRANSMISSION AND DISTRIBUTION LINES. (All lines inspection reports shall be accompanied by the inspectors Training certificate for Line Inspections.)","km"]
[null,null,"MV SECTION "]
[null,"D.1","Access roads ","metre"]
[null,"D.2","Vegitation management (tree cutting and shrubs)","sq/m"]
[null,"D.3","String of MV aerial bundle (includes attachments)","per/m"]
[null,"D.4","Re-tension conductors per phase <15mm square (Includes all activities)","per/m"]
[null,"D.5","Re-tension conductors per phase >= 15mm square (Includes all activities)","per/m"]
[null,"D.6","Install or Remove Regulator / Capacitor/Metering unit","per unit"]
[null,"D.7","Install or Remove Transformer / Recloser 16 - 64kVA","per unit"]
[null,"D.8","Install or Remove Transformer / Recloser 100 - 200kVA","per unit"]
[null,"D.9","Install or Remove Transformer / Recloser 315 - 500kVA","per unit"]
[null,"D.10","Install or Remove MV Auxilaries (CoS,LBS, Tri-switch,)","each"]
[null,"D.11","Trench digging, laying of cables, and close the trench (depth = 1m)","per/m"]
[null,"D.12","Removing old cable from trench","per/m"]
[null,"D.13","Dig Holes for Pole and Stay Holes","per/m"]
[null,"D.14","Hole auger / Drilling Holes","per/m"]
[null,"D.15","Line Bore – (Drill under through Roads and Pathways)","per/m"]
[null,"D.16","Demolishing HV (66kV and132kV) Line - Including Poles)","per/m"]
[null,"D.17","Planting of HV poles (66kV and 132kV) Five pole structure","each"]
[null,"D.18","Planting of HV poles (66kV and 132kV) Latice structure","each"]
[null,"D.19","Planting of HV poles (66kV and 132kV) Mono pole structure","each"]
[null,"D.20","X-arm - HV poles (66kV and 132kV) ","each"]
[null,"D.21","Pole numbering LV & MV ","each"]
[null,"D.22","Demolishing MV (11kV and 33kV) Line - Including poles","km"]
[null,"D.23","Planting or Removing MV Pole (Steel/Concrete/Wood) - strain","each"]
[null,"D.24","Planting or Removing MV Pole (Steel/Concrete/Wood) - intermediate/ suspension","each"]
[null,"D.25"," X-arm Remove or replace MV Pole (Steel/Concrete/Wood) -","each"]
[null,"D.26","Planting or Removing Pole (NO crane vehicle access – Plant/Remove by manual labour)","each"]
[null,"D.27","Stays and hardware Installation","each"]
[null,"D.28","Strut pole and hardware Installation","each"]
[null,"D.29","Tensioning of Stays (Includes the loosening and re-tensioning)","each"]
[null,"D.30","Replace insulators 11kV to 33kV Lines (Up to all Insulators on 1 Phase- Costing per phase and excludes when stringing is done)","each"]
[null,"D.31","Change Intermediate pole to Strain Pole","each"]
[null,"D.32","MV Line Inspection (All Line Inspections shall be done as per 34-1441 - ROUTINE INSPECTION AND MAINTENANCE OF SUBTRANSMISSION AND DISTRIBUTION LINES. (All lines inspection reports shall be accompanied by the inspectors Training certificate for Line Inspections.)","km"]
[null,"D.33","Trench digging 1m deep (Manual Labour) (See Note D in Clarification Sheet)","per/m"]
[null,"D.34","Install/Remove Mini-Substation/Ground Mounted Trfr <=1MVA","per/unit"]
[null,"D.35","Fusing philosophy (Fuse replacing or solid replacing)","per/unit"]
[null,"D.36","Guard wire - Remove/replace/ install ","km"]
[null,"D.37","Remove and replace other loose attachments (SA, Dead-ends, wreplock etc) MV/HV","each"]
[]
[null,"Special Events (See Note D in Task Order Clarification Sheet)"]
[null,"B1.1","Labour per hour (normal)","Hr",null,null,{"$f":"SUM(E268*F268)","v":{"v":0,"d":"R0.00"}}]
[null,"B1.2","Labour per hour (overtime)","Hr",null,null,{"$f":"SUM(E269*F269)","v":{"v":0,"d":"R0.00"}}]
[null,"B1.3","Labour per hour (Sunday)","Hr",null,null,{"v":0,"d":"R0.00"}]
[null,"B1.4","Labour per hour (normal)","Hr",null,null,{"v":0,"d":"R0.00"}]
[null,"B1.5","Labour per hour (overtime)","Hr",null,null,{"v":0,"d":"R0.00"}]
[null,"B1.6","Labour per hour (Sunday)","Hr",null,null,{"v":0,"d":"R0.00"}]
[null,"B1.7","Labour per hour (normal)","Hr",null,null,{"v":0,"d":"R0.00"}]
[null,"B1.8","Labour per hour (overtime)","Hr",null,null,{"v":0,"d":"R0.00"}]
[null,"B1.9","Labour per hour (Sunday)","Hr",null,null,{"v":0,"d":"R0.00"}]
[]
[null,"NOTE: Any additional services required per job site shall be agreed upon between the Contractor and the Employer's Representative. Quotes shall be submitted by the Contractor and shall be accepted by the Employer's Rpresentative before work may commence.",{"$nulls":3},"SUB-TOTAL",{"$f":"SUM(G20:G276)","v":{"v":0,"d":"R 0.00"}}]
[{"$nulls":5},"15% VAT",{"$f":"SUM(G278)*15%","v":{"v":0,"d":"R 0.00"}}]
[{"$nulls":5},"TOTAL",{"$f":"SUM(G278:G279)","v":{"v":0,"d":"R 0.00"}}]